fUST/lending_fUST_20250220
["ID","MTS","AMOUNT","RATE_DAILY","PERIOD"]
[353667435,1739986252456,-1932.61,0.00014767,2]
[353667437,1739986252466,-1053.28,0.00014767,2]
[353667439,1739986252475,-7097.34,0.00014767,2]
[353667441,1739986252484,-1020.83,0.00014767,2]
[353667442,1739986252493,-500.0,0.00014767,2]
[353667444,1739986252503,-1487.67,0.00014767,2]
[353667446,1739986252513,-871.64,0.00014799,2]
[353667448,1739986252523,-871.64,0.00014799,2]
[353667450,1739986252532,-871.64,0.00014799,2]
[353667452,1739986252542,-871.64,0.00014799,2]
[353667454,1739986252551,-871.80004014,0.00014799,2]
[353667456,1739986252561,-550.1433476,0.00014799,2]
[353667458,1739986252570,-151.0,0.000148,2]
[353667460,1739986252580,-187791.894283,0.000148,2]
[353667462,1739986252590,-494.90513098,0.00014802,2]
[353667464,1739986252599,-500.0,0.00014849,2]
[353667466,1739986252608,-500.0,0.00014849,2]
[353667467,1739986252617,-500.0,0.00014849,2]
[353667469,1739986252627,-500.0,0.00014849,2]
[353667471,1739986252637,-13315.14,0.00014849,2]
[353667473,1739986252647,-581.0,0.00014849,2]
[353667475,1739986252657,-500.0,0.00014849,2]
[353667477,1739986252667,-500.0,0.00014849,2]
[353667479,1739986252676,-500.0,0.00014849,2]
[353667481,1739986252686,-2197.12,0.00014849,2]
[353667483,1739986252695,-500.0,0.00014849,2]
[353667485,1739986252705,-873.94,0.00014849,2]
[353667487,1739986252714,-1763.68,0.00014849,2]
[353667489,1739986252724,-805.34,0.00014849,2]
[353667491,1739986252733,-800.06,0.00014849,2]
[353667493,1739986252744,-7472.9,0.00014849,2]
[353667495,1739986252753,-2478.98,0.00014849,2]
[353667497,1739986252763,-500.0,0.00014849,2]
[353667499,1739986252772,-643.18,0.00014849,2]
[353667501,1739986252782,-500.0,0.00014849,2]
[353667503,1739986252791,-851.77,0.00014849,2]
[353667505,1739986252801,-500.0,0.00014849,2]
[353667507,1739986252811,-560.22,0.00014849,2]
[353667509,1739986252820,-2123.0,0.00014849,2]
[353667511,1739986252830,-1587.01,0.00014849,2]
[353667513,1739986252840,-1200.39,0.00014849,2]
[353667515,1739986252853,-989.34,0.00014849,2]
[353667517,1739986252862,-5692.57,0.00014849,2]
[353667519,1739986252872,-525.39,0.00014849,2]
[353667521,1739986252889,-1761.98,0.00014849,2]
[353667523,1739986252902,-816.71,0.00014849,2]
[353667526,1739986252912,-500.0,0.00014849,2]
[353667527,1739986252923,-1932.61,0.00014849,2]
[353667529,1739986252933,-1053.28,0.00014849,2]
[353667531,1739986252943,-7097.34,0.00014849,2]
[353667533,1739986252953,-1020.83,0.00014849,2]
[353667535,1739986252963,-500.0,0.00014849,2]
[353667537,1739986252974,-1487.67,0.00014849,2]
[353667539,1739986252984,-410485.688043,0.000149,2]
[353667542,1739986252994,-568.57606602,0.000149,2]
[353667544,1739986253005,-500.0,0.00014931,2]
[353667546,1739986253015,-500.0,0.00014931,2]
[353667548,1739986253025,-500.0,0.00014931,2]
[353667550,1739986253035,-500.0,0.00014931,2]
[353667552,1739986253045,-13315.14,0.00014931,2]
[353667553,1739986253055,-581.0,0.00014931,2]
[353667555,1739986253064,-500.0,0.00014931,2]
[353667557,1739986253074,-500.0,0.00014931,2]
[353667560,1739986253084,-500.0,0.00014931,2]
[353667561,1739986253094,-2197.12,0.00014931,2]
[353667564,1739986253104,-289.65,0.00014931,2]
[353667565,1739986253114,-873.94,0.00014931,2]
[353667567,1739986253124,-1763.68,0.00014931,2]
[353667569,1739986253134,-805.34,0.00014931,2]
[353667572,1739986253144,-800.06,0.00014931,2]
[353667573,1739986253154,-7472.9,0.00014931,2]
[353667575,1739986253164,-2478.98,0.00014931,2]
[353667576,1739986253174,-500.0,0.00014931,2]
[353667577,1739986253183,-643.18,0.00014931,2]
[353667578,1739986253193,-500.0,0.00014931,2]
[353667579,1739986253317,-851.77,0.00014931,2]
[353667580,1739986253327,-210.11677832,0.00014931,2]
[353667581,1739986253337,-560.22,0.00014931,2]
[353667582,1739986253347,-2123.0,0.00014931,2]
[353667583,1739986253356,-1587.01,0.00014931,2]
[353667584,1739986253366,-1200.39,0.00014931,2]
[353667585,1739986253376,-989.34,0.00014931,2]
[353667586,1739986253385,-5692.57,0.00014931,2]
[353667587,1739986253395,-525.39,0.00014931,2]
[353667588,1739986253404,-1761.98,0.00014931,2]
[353667589,1739986253414,-816.71,0.00014931,2]
[353667590,1739986253424,-395.44,0.00014931,2]
[353667591,1739986253434,-151.0,0.00014931,2]
[353667592,1739986253443,-1932.61,0.00014931,2]
[353667593,1739986253452,-540.363379,0.00014931,2]
[353667594,1739986253462,-1053.28,0.00014931,2]
[353667595,1739986253472,-540.363379,0.00014931,2]
[353667596,1739986253481,-7097.34,0.00014931,2]
[353667597,1739986253491,-1020.83,0.00014931,2]
[353667598,1739986253501,-500.0,0.00014931,2]
[353667599,1739986253511,-1309.574645,0.00014931,2]
[353667600,1739986253520,-1309.574645,0.00014931,2]
[353667601,1739986253530,-1487.67,0.00014931,2]
[353667602,1739986253540,-501.56720577,0.00014998,2]
[353667603,1739986253550,-151.0,0.00015,2]
[353667604,1739986253560,-6406.91950664,0.00015,3]
[353667605,1739986253570,-3646.4315377,0.00015,2]
[353667606,1739986253581,-466.58002398,0.00015004,2]
[353667607,1739986253590,-500.0,0.00015013,2]
[353667608,1739986253601,-500.0,0.00015013,2]
[353667609,1739986253611,-500.0,0.00015013,2]
[353667610,1739986253620,-500.0,0.00015013,2]
[353667611,1739986253630,-13315.14,0.00015013,2]
[353667612,1739986253640,-581.0,0.00015013,2]
[353667613,1739986253649,-500.0,0.00015013,2]
[353667614,1739986253659,-272.71892472,0.00015013,2]
[353667615,1739986253669,-511.96,0.00015013,2]
[353667616,1739986253678,-2197.12,0.00015013,2]
[353667617,1739986253688,-873.94,0.00015013,2]
[353667618,1739986253698,-1763.68,0.00015013,2]
[353667619,1739986253710,-805.34,0.00015013,2]
[353667620,1739986253721,-800.06,0.00015013,2]
[353667621,1739986253730,-7472.9,0.00015013,2]
[353667622,1739986253740,-2478.98,0.00015013,2]
[353667623,1739986253750,-500.0,0.00015013,2]
[353667625,1739986253760,-643.18,0.00015013,2]
[353667626,1739986253769,-500.0,0.00015013,2]
[353667628,1739986253779,-851.77,0.00015013,2]
[353667629,1739986253789,-560.22,0.00015013,2]
[353667630,1739986253799,-2123.0,0.00015013,2]
[353667631,1739986253809,-1587.01,0.00015013,2]
[353667632,1739986253819,-1200.39,0.00015013,2]
[353667633,1739986253830,-989.34,0.00015013,2]
[353667634,1739986253843,-5692.57,0.00015013,2]
[353667635,1739986253855,-525.39,0.00015013,2]
[353667636,1739986253865,-1761.98,0.00015013,2]
[353667637,1739986253875,-816.71,0.00015013,2]
[353667638,1739986253887,-1932.61,0.00015013,2]
[353667639,1739986253898,-1053.28,0.00015013,2]
[353667640,1739986253907,-7097.34,0.00015013,2]
[353667641,1739986253918,-1020.83,0.00015013,2]
[353667642,1739986253930,-500.0,0.00015013,2]
[353667643,1739986253940,-1487.67,0.00015013,2]
[353667644,1739986253949,-500.0,0.00015095,2]
[353667645,1739986253959,-500.0,0.00015095,2]
[353667646,1739986253969,-500.0,0.00015095,2]
[353667647,1739986253979,-500.0,0.00015095,2]
[353667648,1739986253988,-13315.14,0.00015095,2]
[353667649,1739986253999,-581.0,0.00015095,2]
[353667650,1739986254009,-500.0,0.00015095,2]
[353667651,1739986254020,-2197.12,0.00015095,2]
[353667652,1739986254029,-873.94,0.00015095,2]
[353667653,1739986254040,-1763.68,0.00015095,2]
[353667654,1739986254050,-805.34,0.00015095,2]
[353667655,1739986254059,-800.06,0.00015095,2]
[353667656,1739986254069,-7472.9,0.00015095,2]
[353667657,1739986254080,-2478.98,0.00015095,2]
[353667658,1739986254090,-500.0,0.00015095,2]
[353667659,1739986254100,-643.18,0.00015095,2]
[353667660,1739986254111,-500.0,0.00015095,2]
[353667661,1739986254121,-851.77,0.00015095,2]
[353667662,1739986254131,-560.22,0.00015095,2]
[353667663,1739986254141,-2123.0,0.00015095,2]
[353667664,1739986254151,-1587.01,0.00015095,2]
[353667665,1739986254161,-1200.39,0.00015095,2]
[353667666,1739986254170,-989.34,0.00015095,2]
[353667667,1739986254181,-5692.57,0.00015095,2]
[353667668,1739986254190,-525.39,0.00015095,2]
[353667669,1739986254200,-1761.98,0.00015095,2]
[353667670,1739986254211,-816.71,0.00015095,2]
[353667671,1739986254220,-1932.61,0.00015095,2]
[353667672,1739986254230,-1053.28,0.00015095,2]
[353667673,1739986254240,-7097.34,0.00015095,2]
[353667674,1739986254250,-1020.83,0.00015095,2]
[353667675,1739986254259,-500.0,0.00015095,2]
[353667676,1739986254269,-1487.67,0.00015095,2]
[353667677,1739986254279,-151.0,0.000151,2]
[353667678,1739986254289,-587.0,0.00015162,2]
[353667679,1739986254298,-398.76,0.00015178,2]
[353667680,1739986254308,-500.0,0.00015178,2]
[353667681,1739986254317,-251.82,0.00015178,2]
[353667682,1739986254327,-500.0,0.00015178,2]
[353667683,1739986254336,-13315.14,0.00015178,2]
[353667684,1739986254345,-581.0,0.00015178,2]
[353667685,1739986254355,-500.0,0.00015178,2]
[353667686,1739986254365,-2197.12,0.00015178,2]
[353667687,1739986254376,-873.94,0.00015178,2]
[353667688,1739986254385,-1763.68,0.00015178,2]
[353667689,1739986254395,-805.34,0.00015178,2]
[353667690,1739986254405,-800.06,0.00015178,2]
[353667691,1739986254415,-7472.9,0.00015178,2]
[353667692,1739986254425,-2478.98,0.00015178,2]
[353667693,1739986254435,-500.0,0.00015178,2]
[353667694,1739986254444,-643.18,0.00015178,2]
[353667695,1739986254454,-500.0,0.00015178,2]
[353667696,1739986254463,-851.77,0.00015178,2]
[353667697,1739986254474,-560.22,0.00015178,2]
[353667698,1739986254484,-2123.0,0.00015178,2]
[353667699,1739986254493,-1587.01,0.00015178,2]
[353667700,1739986254503,-1200.39,0.00015178,2]
[353667701,1739986254512,-989.34,0.00015178,2]
[353667702,1739986254522,-5692.57,0.00015178,2]
[353667703,1739986254532,-525.39,0.00015178,2]
[353667704,1739986254542,-1761.98,0.00015178,2]
[353667705,1739986254552,-816.71,0.00015178,2]
[353667706,1739986254562,-1932.61,0.00015178,2]
[353667707,1739986254571,-1053.28,0.00015178,2]
[353667708,1739986254581,-7097.34,0.00015178,2]
[353667709,1739986254591,-1020.83,0.00015178,2]
[353667710,1739986254600,-500.0,0.00015178,2]
[353667711,1739986254610,-500.80430822,0.00015222,2]
[353667712,1739986254619,-1500.0,0.00015222,2]
[353667713,1739986254629,-500.57312837,0.00015222,2]
[353667714,1739986254639,-500.0,0.0001526,2]
[353667715,1739986254648,-500.0,0.0001526,2]
[353667716,1739986254659,-13315.14,0.0001526,2]
[353667717,1739986254668,-581.0,0.0001526,2]
[353667718,1739986254678,-574.44100684,0.0001526,2]
[353667720,1739986254688,-2197.12,0.0001526,2]
[353667722,1739986254697,-873.94,0.0001526,2]
[353667724,1739986254707,-1763.68,0.0001526,2]
[353667726,1739986254717,-805.34,0.0001526,2]
[353667728,1739986254727,-800.06,0.0001526,2]
[353667730,1739986254736,-7472.9,0.0001526,2]
[353667732,1739986254746,-2478.98,0.0001526,2]
[353667734,1739986254755,-500.0,0.0001526,2]
[353667736,1739986254765,-643.18,0.0001526,2]
[353667738,1739986254774,-500.0,0.0001526,2]
[353667740,1739986254784,-851.77,0.0001526,2]
[353667742,1739986254793,-560.22,0.0001526,2]
[353667744,1739986254803,-2123.0,0.0001526,2]
[353667747,1739986254813,-1587.01,0.0001526,2]
[353667749,1739986254824,-1200.39,0.0001526,2]
[353667751,1739986254834,-989.34,0.0001526,2]
[353667753,1739986254844,-5692.57,0.0001526,2]
[353667755,1739986254855,-525.39,0.0001526,2]
[353667757,1739986254866,-1761.98,0.0001526,2]
[353667759,1739986254876,-816.71,0.0001526,2]
[353667769,1739986254963,-1932.61,0.0001526,2]
[353667771,1739986254974,-1053.28,0.0001526,2]
[353667773,1739986254984,-7097.34,0.0001526,2]
[353667775,1739986254993,-1020.83,0.0001526,2]
[353667777,1739986255003,-319.98397717,0.0001526,2]
[353667779,1739986255013,-151.0,0.000153,2]
[353667781,1739986255023,-1144.4288868,0.00015322,2]
[353667784,1739986255041,-903.79260333,0.00015322,2]
[353667786,1739986255054,-500.0,0.00015342,2]
[353667788,1739986255065,-500.0,0.00015342,2]
[353667790,1739986255075,-13315.14,0.00015342,2]
[353667793,1739986255086,-581.0,0.00015342,2]
[353667795,1739986255097,-2197.12,0.00015342,2]
[353667797,1739986255107,-873.94,0.00015342,2]
[353667799,1739986255118,-1763.68,0.00015342,2]
[353667801,1739986255127,-805.34,0.00015342,2]
[353667803,1739986255137,-800.06,0.00015342,2]
[353667805,1739986255147,-7472.9,0.00015342,2]
[353667807,1739986255157,-406.45709066,0.00015342,2]
[353667839,1739986255438,-500.0,0.00013698,2]
[353667841,1739986255448,-500.0,0.00013698,2]
[353667843,1739986255458,-1487.67,0.00015178,2]
[353667845,1739986255468,-1487.67,0.0001526,2]
[353667847,1739986255478,-2072.52290934,0.00015342,2]
[353667849,1739986255488,-500.0,0.00015342,2]
[353667851,1739986255498,-643.18,0.00015342,2]
[353667853,1739986255507,-340.79789205,0.00015342,2]
[353667855,1739986255517,-851.77,0.00015342,2]
[353667857,1739986255527,-560.22,0.00015342,2]
[353667859,1739986255537,-2123.0,0.00015342,2]
[353667861,1739986255547,-1587.01,0.00015342,2]
[353667863,1739986255556,-1200.39,0.00015342,2]
[353667865,1739986255566,-989.34,0.00015342,2]
[353667867,1739986255575,-5692.57,0.00015342,2]
[353667869,1739986255585,-525.39,0.00015342,2]
[353667871,1739986255594,-1761.98,0.00015342,2]
[353667873,1739986255604,-816.71,0.00015342,2]
[353667875,1739986255613,-1932.61,0.00015342,2]
[353667877,1739986255623,-1053.28,0.00015342,2]
[353667879,1739986255632,-7097.34,0.00015342,2]
[353667880,1739986255641,-1020.83,0.00015342,2]
[353667881,1739986255651,-1487.67,0.00015342,2]
[353667882,1739986255660,-500.0,0.00015424,2]
[353667883,1739986255670,-498.32,0.00015424,2]
[353667884,1739986255680,-13315.14,0.00015424,2]
[353667885,1739986255690,-581.0,0.00015424,2]
[353667886,1739986255700,-2197.12,0.00015424,2]
[353667887,1739986255709,-873.94,0.00015424,2]
[353667888,1739986255719,-1763.68,0.00015424,2]
[353667889,1739986255729,-805.34,0.00015424,2]
[353667890,1739986255738,-800.06,0.00015424,2]
[353667891,1739986255748,-7472.9,0.00015424,2]
[353667892,1739986255758,-2478.98,0.00015424,2]
[353667893,1739986255767,-500.0,0.00015424,2]
[353667894,1739986255776,-643.18,0.00015424,2]
[353667895,1739986255785,-851.77,0.00015424,2]
[353667896,1739986255795,-560.22,0.00015424,2]
[353667897,1739986255804,-2123.0,0.00015424,2]
[353667898,1739986255814,-1587.01,0.00015424,2]
[353667899,1739986255824,-1200.39,0.00015424,2]
[353667900,1739986255837,-989.34,0.00015424,2]
[353667901,1739986255849,-5692.57,0.00015424,2]
[353667902,1739986255858,-525.39,0.00015424,2]
[353667903,1739986255868,-1761.98,0.00015424,2]
[353667904,1739986255878,-816.71,0.00015424,2]
[353667905,1739986255889,-1932.61,0.00015424,2]
[353667906,1739986255902,-1053.28,0.00015424,2]
[353667907,1739986255911,-7097.34,0.00015424,2]
[353667908,1739986255921,-1020.83,0.00015424,2]
[353667909,1739986255931,-1487.67,0.00015424,2]
[353667910,1739986255940,-628.2,0.00015506,2]
[353667911,1739986255950,-13315.14,0.00015506,2]
[353667912,1739986255960,-581.0,0.00015506,2]
[353667913,1739986255970,-2197.12,0.00015506,2]
[353667914,1739986255980,-873.94,0.00015506,2]
[353667915,1739986255989,-1763.68,0.00015506,2]
[353667916,1739986255999,-805.34,0.00015506,2]
[353667917,1739986256008,-800.06,0.00015506,2]
[353667918,1739986256018,-7472.9,0.00015506,2]
[353667919,1739986256027,-2478.98,0.00015506,2]
[353667920,1739986256037,-312.04,0.00015506,2]
[353667921,1739986256046,-643.18,0.00015506,2]
[353667922,1739986256056,-851.77,0.00015506,2]
[353667923,1739986256067,-560.22,0.00015506,2]
[353667924,1739986256077,-2123.0,0.00015506,2]
[353667925,1739986256091,-1587.01,0.00015506,2]
[353667926,1739986256101,-1200.39,0.00015506,2]
[353667927,1739986256111,-989.34,0.00015506,2]
[353667928,1739986256121,-5692.57,0.00015506,2]
[353667929,1739986256132,-525.39,0.00015506,2]
[353667930,1739986256142,-1761.98,0.00015506,2]
[353667931,1739986256152,-816.71,0.00015506,2]
[353667932,1739986256161,-1932.61,0.00015506,2]
[353667933,1739986256171,-1053.28,0.00015506,2]
[353667934,1739986256180,-7097.34,0.00015506,2]
[353667935,1739986256190,-1020.83,0.00015506,2]
[353667936,1739986256199,-1487.67,0.00015506,2]
[353667937,1739986256209,-1500.0,0.00015522,2]
[353667938,1739986256219,-500.0,0.00015522,2]
[353667939,1739986256229,-1597.04980234,0.00015522,2]
[353667940,1739986256238,-10082.9946299,0.0001558,2]
[353667941,1739986256247,-13315.25,0.00015589,2]
[353667942,1739986256257,-581.12991298,0.00015589,2]
[353667943,1739986256266,-2197.21,0.00015589,2]
[353667944,1739986256276,-874.1,0.00015589,2]
[353667945,1739986256366,-1763.90473889,0.00015589,2]
[353667946,1739986256376,-805.37,0.00015589,2]
[353667947,1739986256386,-800.25754596,0.00015589,2]
[353667948,1739986256395,-7473.11247827,0.00015589,2]
[353667949,1739986256404,-2479.11961166,0.00015589,2]
[353667950,1739986256415,-643.24445471,0.00015589,2]
[353667951,1739986256424,-851.82082446,0.00015589,2]
[353667952,1739986256434,-560.25336587,0.00015589,2]
[353667953,1739986256443,-2123.04749468,0.00015589,2]
[353667954,1739986256453,-1587.14691268,0.00015589,2]
[353667955,1739986256462,-1200.39244067,0.00015589,2]
[353667956,1739986256471,-989.4511216,0.00015589,2]
[353667957,1739986256481,-5692.66155046,0.00015589,2]
[353667958,1739986256491,-525.51159546,0.00015589,2]
[353667959,1739986256501,-1762.1830646,0.00015589,2]
[353667960,1739986256510,-816.94901734,0.00015589,2]
[353667961,1739986256520,-1932.78225558,0.00015589,2]
[353667962,1739986256530,-1053.45663562,0.00015589,2]
[353667963,1739986256539,-7097.50336621,0.00015589,2]
[353667964,1739986256549,-1020.91,0.00015589,2]
[353667965,1739986256559,-1487.82947542,0.00015589,2]
[353667966,1739986256568,-2520.63781581,0.00015697,2]
[353667967,1739986256578,-465.0790012,0.00015754,2]
[353667968,1739986256588,-295.852062,0.00015775,2]
[353667969,1739986256598,-700.0,0.00015808,2]
[353667970,1739986256608,-355.163177,0.00015861,2]
[353667971,1739986256618,-29566.85866635,0.000162,2]
[353667972,1739986256627,-29566.85866632,0.000162,2]
[353667973,1739986256638,-29566.85866632,0.000162,2]
[353667974,1739986256648,-1000.0,0.00016438,2]
[353667975,1739986256657,-1000.0,0.00016438,2]
[353667976,1739986256666,-397.53754396,0.00016438,2]
[353667977,1739986256675,-12000.0,0.00016438,2]
[353667978,1739986256685,-10052.38462478,0.000165,2]
[353667979,1739986256695,-153.0,0.00016511,2]
[353667980,1739986256704,-2000.0,0.0001652,2]
[353667981,1739986256714,-465.00395006,0.00016542,2]
[353667982,1739986256724,-500.0,0.000166,7]
[353667983,1739986256733,-500.0,0.000166,7]
[353667984,1739986256743,-500.0,0.000166,7]
[353667985,1739986256752,-500.0,0.000166,7]
[353667986,1739986256761,-500.0,0.000166,7]
[353667987,1739986256771,-500.0,0.000166,7]
[353667988,1739986256780,-500.0,0.000166,7]
[353667989,1739986256789,-500.0,0.000166,7]
[353667990,1739986256799,-500.0,0.000166,7]
[353667991,1739986256808,-566.69,0.000166,7]
[353667992,1739986256817,-823.0,0.00016634,2]
[353667993,1739986256827,-29566.85866632,0.00016667,2]
[353667994,1739986256837,-500.0,0.00016721,2]
[353667995,1739986256849,-355.163177,0.0001682,2]
[353667996,1739986256859,-355.163177,0.0001682,2]
[353667997,1739986256869,-355.163177,0.0001682,2]
[353667998,1739986256878,-355.163177,0.0001682,2]
[353667999,1739986256888,-676.7050925,0.0001682,2]
[353668000,1739986256899,-1001.66515834,0.0001682,2]
[353668001,1739986256908,-500.0,0.00016821,2]
[353668002,1739986256918,-498.57453263,0.0001687,2]
[353668003,1739986256930,-500.0,0.00016921,2]
[353668004,1739986256940,-1000.0,0.00017,17]
[353668005,1739986256950,-1319.90364068,0.00017,2]
[353668006,1739986256959,-500.0,0.00017021,2]
[353668007,1739986256969,-153.0,0.00017059,2]
[353668008,1739986256978,-153.0,0.00017059,2]
[353668009,1739986256987,-153.0,0.00017059,2]
[353668010,1739986256997,-500.0,0.00017121,2]
[353668011,1739986257006,-700.0,0.00017178,2]
[353668012,1739986257015,-151.0,0.000172,2]
[353668013,1739986257024,-500.0,0.00017221,2]
[353668014,1739986257034,-3472.6119723,0.00017247,2]
[353668015,1739986257044,-13275.53870192,0.0001727,2]
[353668016,1739986257053,-500.0,0.00017321,2]
[353668017,1739986257063,-1000.0,0.00017364,2]
[353668018,1739986257072,-500.0,0.00017421,2]
[353668019,1739986257082,-557.1188801,0.0001747,2]
[353668020,1739986257091,-557.1188801,0.0001747,2]
[353668021,1739986257101,-557.1188801,0.0001747,2]
[353668022,1739986257110,-557.1188801,0.0001747,2]
[353668023,1739986257119,-557.1188801,0.0001747,2]
[353668024,1739986257129,-557.1188801,0.0001747,2]
[353668025,1739986257138,-1114.2377602,0.0001747,2]
[353668026,1739986257147,-557.1188801,0.0001747,2]
[353668027,1739986257157,-557.1188801,0.0001747,2]
[353668028,1739986257167,-557.1188801,0.0001747,2]
[353668029,1739986257177,-557.1188801,0.0001747,2]
[353668030,1739986257187,-557.1188801,0.0001747,2]
[353668031,1739986257196,-557.1188801,0.0001747,2]
[353668032,1739986257205,-557.1188801,0.0001747,2]
[353668033,1739986257215,-557.1188801,0.0001747,2]
[353668034,1739986257225,-557.1188801,0.0001747,2]
[353668035,1739986257233,-557.1188801,0.0001747,2]
[353668036,1739986257243,-557.1188801,0.0001747,2]
[353668037,1739986257253,-557.1188801,0.0001747,2]
[353668038,1739986257262,-557.1188801,0.0001747,2]
[353668039,1739986257272,-557.1188801,0.0001747,2]
[353668040,1739986257281,-321.0,0.0001749,2]
[353668041,1739986257290,-160.0,0.00017499,2]
[353668042,1739986257300,-3000.0,0.000175,2]
[353668043,1739986257309,-3000.0,0.000175,2]
[353668044,1739986257318,-236913.37427604,0.000175,2]
[353668045,1739986257327,-63343.45373074,0.000175,2]
[353668046,1739986257338,-13498.23162692,0.000175,2]
[353668047,1739986257348,-162.71656321,0.000175,2]
[353668048,1739986257357,-162.71656321,0.000175,2]
[353668049,1739986257367,-162.71,0.000175,2]
[353668050,1739986257376,-210.33200666,0.000175,2]
[353668051,1739986257385,-210.33200666,0.000175,2]
[353668052,1739986257394,-210.33200666,0.000175,2]
[353668053,1739986257403,-210.33200666,0.000175,2]
[353668054,1739986257412,-210.33200666,0.000175,2]
[353668055,1739986257422,-210.33200666,0.000175,2]
[353668056,1739986257431,-210.33200666,0.000175,2]
[353668057,1739986257441,-210.33200666,0.000175,2]
[353668058,1739986257450,-210.33200666,0.000175,2]
[353668059,1739986257459,-210.33200666,0.000175,2]
[353668060,1739986257468,-210.33200666,0.000175,2]
[353668061,1739986257477,-210.33200666,0.000175,2]
[353668062,1739986257487,-210.33200666,0.000175,2]
[353668063,1739986257497,-210.33200666,0.000175,2]
[353668064,1739986257506,-210.33200666,0.000175,2]
[353668065,1739986257516,-210.33200666,0.000175,2]
[353668066,1739986257526,-210.33200666,0.000175,2]
[353668067,1739986257535,-210.33200666,0.000175,2]
[353668068,1739986257545,-210.33200666,0.000175,2]
[353668069,1739986257555,-210.33,0.000175,2]
[353668070,1739986257564,-451.38364222,0.000175,2]
[353668071,1739986257573,-451.38364222,0.000175,2]
[353668072,1739986257585,-451.38364222,0.000175,2]
[353668073,1739986257594,-451.38364222,0.000175,2]
[353668074,1739986257603,-451.38364222,0.000175,2]
[353668075,1739986257613,-451.38364222,0.000175,2]
[353668076,1739986257622,-451.38364222,0.000175,2]
[353668077,1739986257631,-451.38364222,0.000175,2]
[353668078,1739986257640,-451.38364222,0.000175,2]
[353668079,1739986257649,-451.38364222,0.000175,2]
[353668080,1739986257726,-451.38364222,0.000175,2]
[353668081,1739986257736,-451.38364222,0.000175,2]
[353668082,1739986257746,-451.38364222,0.000175,2]
[353668083,1739986257757,-451.38364222,0.000175,2]
[353668084,1739986257767,-451.38364222,0.000175,2]
[353668085,1739986257777,-451.38364222,0.000175,2]
[353668086,1739986257787,-451.38364222,0.000175,2]
[353668087,1739986257798,-451.38364222,0.000175,2]
[353668088,1739986257808,-451.38364222,0.000175,2]
[353668089,1739986257819,-451.38,0.000175,2]
[353668090,1739986257828,-2520.63781581,0.000175,2]
[353668091,1739986257838,-1000.0,0.00017503,2]
[353668092,1739986257852,-1000.0,0.00017519,2]
[353668093,1739986257861,-500.0,0.00017521,2]
[353668094,1739986257871,-160.0,0.00017598,2]
[353668095,1739986257881,-160.0,0.00017599,2]
[353668096,1739986257891,-160.0,0.00017599,2]
[353668097,1739986257902,-1283.6860147,0.00017599,2]
[353668098,1739986257912,-296.30711892,0.00017599,2]
[353668099,1739986257924,-160.0,0.00017599,2]
[353668100,1739986257934,-91704.8263199,0.00017599,2]
[353668101,1739986257945,-160.0,0.00017599,2]
[353668102,1739986257955,-204.66108231,0.000176,2]
[353668103,1739986257964,-314.0,0.000176,2]
[353668104,1739986257974,-314.0,0.000176,2]
[353668105,1739986257984,-314.0,0.000176,2]
[353668106,1739986257994,-314.0,0.000176,2]